[Event "POL-chT 2nd League-4 2020"]
[Site "Poronin"]
[Date "2020.09.12"]
[Round "8.6"]
[White "Trusz, Julia"]
[Black "Bukowska, Katarzyna"]
[Result "1/2-1/2"]
[ECO "E06"]
[WhiteElo "1675"]
[BlackElo "1887"]
[Annotator "NA"]
[PlyCount "113"]
[EventDate "2020.09.05"]
[EventType "team-tourn"]
[EventCountry "POL"]
[SourceTitle "playchess.com"]
[Source "ChessBase"]
[SourceQuality "1"]
[WhiteTeam "GIECEK Radkow"]
[BlackTeam "HETMAN Konin"]
[TimeControl "40/5400+30:900+30"]

1. d4 {[%emt 0:00:00]} d5 {[%emt 0:00:00]} 2. c4 {[%emt 0:00:00]} e6 {[%emt 0:00:00]} 3. Nf3 {[%emt 0:00:15]} Nf6 {[%emt 0:00:15]} 4. g3 {[%emt 0:00:57]} Be7 {[%emt 0:00:12]} 5. Bg2 {[%emt 0:00:32]} O-O {[%emt 0:00:09]} 6. Nc3 {[%emt 0:00:39]} dxc4 {[%emt 0:01:46]} 7. Ne5 {[%emt 0:02:09]} Nc6 {[%emt 0:00:49]} 8. Bxc6 {[%emt 0:05:36]} bxc6 {[%emt 0:00:09]} 9. Nxc6 {[%emt 0:00:07]} Qe8 {[%emt 0:00:11]} 10. Nxe7+ {[%emt 0:00:19]} Qxe7 {[%emt 0:00:06]} 11. Qa4 {[%emt 0:04:57]} Bb7 {[%emt 0:01:19]} 12. f3 {[%emt 0:10:22]} e5 {[%emt 0:05:01]} 13. dxe5 {[%emt 0:04:52]} Qxe5 {[%emt 0:00:34]} 14. Bf4 {[%emt 0:02:20]} Qc5 {[%emt 0:08:21]} 15. Qb5 {[%emt 0:06:25]} Qxb5 {[%emt 0:10:32]} 16. Nxb5 {[%emt 0:00:09]} Nd5 {[%emt 0:01:19]} 17. Bd2 {[%emt 0:06:45]} Rfe8 {[%emt 0:05:06]} 18. Kf2 {[%emt 0:04:22]} a6 {[%emt 0:00:46]} 19. Na3 {[%emt 0:05:50]} Nb6 {[%emt 0:01:06]} 20. Rac1 {[%emt 0:03:32]} Bd5 {[%emt 0:01:27]} 21. Bf4 {[%emt 0:12:17]} Re7 {[%emt 0:05:49]} 22. Rhd1 {[%emt 0:05:02]} Be6 {[%emt 0:04:42]} 23. Rd2 {[%emt 0:04:21]} f6 {[%emt 0:01:30]} 24. e4 {[%emt 0:04:05]} Rb8 {[%emt 0:04:18]} 25. h4 {[%emt 0:05:17]} h5 {[%emt 0:00:24]} 26. Kg2 {[%emt 0:05:12]} Kf7 {[%emt 0:01:32]} 27. Rcc2 {[%emt 0:02:51]} Rb7 {[%emt 0:03:47]} 28. Rd4 {[%emt 0:01:41]} Rd7 {[%emt 0:02:34]} 29. Rxd7+ {[%emt 0:01:41]} Nxd7 {[%emt 0:08:23]} 30. Bc1 {[%emt 0:01:42]} Nb6 {[%emt 0:01:26]} 31. f4 {[%emt 0:00:20]} f5 {[%emt 0:04:50]} 32. e5 {[%emt 0:00:28]} Rb8 {[%emt 0:01:14]} 33. Kf2 {[%emt 0:00:52]} Rd8 {[%emt 0:02:33]} 34. Be3 {[%emt 0:00:21]} Rb8 {[%emt 0:01:34]} 35. Ke2 {[%emt 0:00:34]} Na4 {[%emt 0:02:30]} 36. Nxc4 {[%emt 0:00:36]} Bxc4+ {[%emt 0:00:20]} 37. Rxc4 {[%emt 0:00:02]} Rxb2+ {[%emt 0:00:39]} 38. Kd3 {[%emt 0:00:41]} Rxa2 {[%emt 0:00:32]} 39. Rxc7+ {[%emt 0:00:04]} Kf8 {[%emt 0:01:11]} 40. e6 {[%emt 0:00:00]} Ra3+ {[%emt 0:00:00]} 41. Ke2 {[%emt 0:02:41]} Nc3+ {[%emt 0:00:58]} 42. Ke1 {[%emt 0:03:22]} Ne4 {[%emt 0:00:34]} 43. Bd4 {[%emt 0:06:21]} Rxg3 {[%emt 0:01:34]} 44. Rf7+ {[%emt 0:00:09]} Ke8 {[%emt 0:04:12]} 45. Rxf5 {[%emt 0:00:40]} Rg4 {[%emt 0:07:27]} 46. Rxh5 {[%emt 0:02:02]} Rxf4 {[%emt 0:00:47]} 47. Bxg7 {[%emt 0:01:24]} Ke7 {[%emt 0:01:32]} 48. Ra5 {[%emt 0:01:57]} Kxe6 {[%emt 0:01:49]} 49. h5 {[%emt 0:01:11]} Kf7 {[%emt 0:02:48]} 50. h6 {[%emt 0:00:12]} Rh4 {[%emt 0:01:28]} 51. Rxa6 {[%emt 0:00:39]} Ng5 {[%emt 0:03:35]} 52. Ra7+ {[%emt 0:00:55]} Kg6 {[%emt 0:00:34]} 53. Ra5 {[%emt 0:00:50]} Nf7 {[%emt 0:00:59]} 54. Ra6+ {[%emt 0:00:39]} Kh7 {[%emt 0:01:58]} 55. Ra7 {[%emt 0:00:18]} Kg6 {[%emt 0:01:13]} 56. Ra6+ {[%emt 0:00:42]} Kh7 {[%emt 0:00:13]} 57. Ra7 1/2-1/2

[Event "POL-chT 2nd League-4 2020"]
[Site "Poronin"]
[Date "2020.09.12"]
[Round "8.8"]
[White "Ciasnocha, Michal"]
[Black "Kudas, Damian"]
[Result "1/2-1/2"]
[ECO "D30"]
[WhiteElo "1826"]
[BlackElo "2132"]
[Annotator "NA"]
[PlyCount "54"]
[EventDate "2020.09.05"]
[EventType "team-tourn"]
[EventCountry "POL"]
[SourceTitle "playchess.com"]
[Source "ChessBase"]
[SourceQuality "1"]
[WhiteTeam "Rzeszowski Klub Szachowy"]
[BlackTeam "MLKS Myslenice"]
[TimeControl "40/5400+30:900+30"]

1. d4 {[%emt 0:00:00]} d5 {[%emt 0:00:00]} 2. c4 {[%emt 0:00:00]} e6 {[%emt 0:00:00]} 3. Nf3 {[%emt 0:00:04]} c6 {[%emt 0:00:00]} 4. e3 {[%emt 0:00:09]} Nf6 {[%emt 0:00:00]} 5. Bd3 {[%emt 0:00:15]} Nbd7 {[%emt 0:00:00]} 6. O-O {[%emt 0:00:08]} Bd6 {[%emt 0:02:41]} 7. Nbd2 {[%emt 0:00:29]} O-O {[%emt 0:00:12]} 8. e4 {[%emt 0:00:32]} dxe4 {[%emt 0:00:55]} 9. Nxe4 {[%emt 0:00:09]} Be7 {[%emt 0:04:58]} 10. Re1 {[%emt 0:09:18]} b6 {[%emt 0:02:20]} 11. Bf4 {[%emt 0:01:57]} c5 {[%emt 0:03:17]} 12. Qe2 {[%emt 0:05:28]} Bb7 $11 {[%emt 0:04:23]} 13. d5 {[%emt 0:38:11]} exd5 {[%emt 0:13:00]} 14. Neg5 {[%emt 0:02:20]} h6 {[%emt 0:22:42]} 15. Qxe7 {[%emt 0:21:13]} hxg5 {[%emt 0:00:24]} 16. Nxg5 {[%emt 0:00:47]} Qxe7 {[%emt 0:04:24]} 17. Rxe7 {[%emt 0:00:05]} Rae8 {[%emt 0:00:59]} 18. Rae1 {[%emt 0:00:50]} Rxe7 19. Rxe7 {[%emt 0:00:05]} Re8 {[%emt 0:04:37]} 20. Rxe8+ {[%emt 0:02:43]} Nxe8 {[%emt 0:00:02]} 21. cxd5 {[%emt 0:00:42]} Bxd5 {[%emt 0:00:39]} 22. a3 {[%emt 0:01:50]} Nef6 {[%emt 0:02:27]} 23. Bb5 {[%emt 0:01:19]} Bb7 {[%emt 0:01:07]} 24. Bc4 {[%emt 0:02:45]} Bd5 {[%emt 0:02:50]} 25. Bb5 {[%emt 0:00:31]} Bb7 {[%emt 0:01:59]} 26. Bc4 {[%emt 0:01:08]} Bd5 {[%emt 0:04:02]} 27. Bb5 {[%emt 0:02:04]} Bb7 {[%emt 0:02:04]} 1/2-1/2

[Event "POL-chT 2nd League-4 2020"]
[Site "Poronin"]
[Date "2020.09.12"]
[Round "8.9"]
[White "Lach, Piotr"]
[Black "Ziemniak, Piotr"]
[Result "1/2-1/2"]
[ECO "A45"]
[WhiteElo "2079"]
[BlackElo "1741"]
[Annotator "NA"]
[PlyCount "107"]
[EventDate "2020.09.05"]
[EventType "team-tourn"]
[EventCountry "POL"]
[SourceTitle "playchess.com"]
[Source "ChessBase"]
[SourceQuality "1"]
[WhiteTeam "MLKS Myslenice"]
[BlackTeam "Rzeszowski Klub Szachowy"]
[TimeControl "40/5400+30:900+30"]

1. d4 {[%emt 0:00:00]} Nf6 {[%emt 0:00:00]} 2. Nc3 {[%emt 0:00:00]} c5 {[%emt 0:00:03]} 3. d5 {[%emt 0:02:47]} d6 {[%emt 0:00:06]} 4. Nf3 {[%emt 0:02:51]} g6 {[%emt 0:00:06]} 5. e4 {[%emt 0:00:49]} Bg7 {[%emt 0:00:23]} 6. Be2 {[%emt 0:00:31]} e5 {[%emt 0:00:56]} 7. O-O {[%emt 0:05:58]} O-O {[%emt 0:00:14]} 8. Nd2 {[%emt 0:01:42]} Ne8 {[%emt 0:04:29]} 9. Nc4 {[%emt 0:04:46] A43: Schmid Benoni.} f5 {[%emt 0:01:17]} 10. exf5 {[%emt 0:02:38]} gxf5 {[%emt 0:00:06]} 11. f4 {[%emt 0:04:38]} e4 {[%emt 0:04:40] [#]} 12. Be3 $146 {[%emt 0:01:36]} ({Predecessor:} 12. g4 Nd7 13. g5 Bxc3 14. bxc3 b5 15. Ne3 c4 16. a4 Ba6 17. a5 Nc5 18. Ba3 {½-½ (32) Ianovsky,M (2110)-Filgueira,H (2379) Villa Ballester 2004}) 12... Nd7 {[%emt 0:03:31]} 13. a4 {[%emt 0:09:16]} Nb6 {[%emt 0:06:50]} 14. a5 {[%emt 0:04:46]} Nxc4 {[%emt 0:00:57]} 15. Bxc4 {[%emt 0:00:02]} Bd7 {[%emt 0:02:43]} 16. Ra2 {[%emt 0:03:12]} Qh4 {[%emt 0:02:07]} 17. Qe1 {[%emt 0:10:30]} Qh5 {[%emt 0:01:39]} 18. Be2 {[%emt 0:03:32]} Qf7 {[%emt 0:00:19]} 19. Qd1 {[%emt 0:01:58]} Nf6 {[%emt 0:02:14]} 20. g3 {[%emt 0:08:40]} h5 {[%emt 0:02:32]} 21. h4 {[%emt 0:04:47]} Kh7 {[%emt 0:00:40]} 22. Kf2 {[%emt 0:01:26]} Rg8 {[%emt 0:00:38]} 23. Rg1 {[%emt 0:08:28]} Ng4+ {[%emt 0:02:15]} 24. Bxg4 {[%emt 0:00:11]} hxg4 {[%emt 0:00:04]} 25. Nb1 {[%emt 0:06:31]} Bf6 {[%emt 0:01:51]} 26. Rh1 {[%emt 0:00:28]} Qg7 $17 {[%emt 0:00:47]} 27. c3 {[%emt 0:01:48]} Bb5 {[%emt 0:00:48]} 28. Nd2 {[%emt 0:03:34]} Bd3 {[%emt 0:00:09]} 29. Qb3 {[%emt 0:00:25]} Rgc8 {[%emt 0:00:42]} 30. Nc4 {[%emt 0:01:31]} Rd8 {[%emt 0:02:01]} 31. Bd2 {[%emt 0:00:23]} Qe7 {[%emt 0:00:30]} 32. Ne3 {[%emt 0:00:25]} Qd7 {[%emt 0:00:18]} 33. Qa4 {[%emt 0:01:50]} Qc8 {[%emt 0:00:48]} 34. b4 {[%emt 0:00:45]} c4 {[%emt 0:00:28]} 35. Raa1 {[%emt 0:02:11]} Rf8 {[%emt 0:00:20]} 36. Qb5 {[%emt 0:01:21]} Bd8 {[%emt 0:00:43]} 37. Qa4 {[%emt 0:00:41]} a6 {[%emt 0:00:52]} 38. Qa2 {[%emt 0:00:38]} b5 {[%emt 0:08:01]} 39. Rh2 {[%emt 0:01:02]} Qb7 {[%emt 0:00:49]} 40. Re1 {[%emt 0:00:00]} Bc7 {[%emt 0:00:00]} 41. Kg1 {[%emt 0:02:59]} Rae8 {[%emt 0:00:42]} 42. Qb2 {[%emt 0:00:57]} Bb8 {[%emt 0:03:17]} 43. Bc1 {[%emt 0:01:00]} Ba7 {[%emt 0:00:24]} 44. Qf2 {[%emt 0:00:35]} Re7 {[%emt 0:02:18]} 45. Bd2 {[%emt 0:01:08]} Rg7 {[%emt 0:00:10]} 46. Rg2 {[%emt 0:00:29]} Qf7 {[%emt 0:00:42]} 47. Rh2 {[%emt 0:00:16]} Re8 {[%emt 0:03:02]} 48. Rg2 {[%emt 0:00:28]} Qf6 {[%emt 0:00:06]} 49. Rh2 {[%emt 0:00:30]} Rge7 {[%emt 0:00:02]} 50. Kg2 {[%emt 0:00:44]} Qf7 {[%emt 0:00:43]} 51. Kg1 {[%emt 0:00:39]} Bc2 {[%emt 0:00:31]} 52. Bc1 {[%emt 0:01:09]} Bb3 {[%emt 0:00:37]} 53. Qd2 {[%emt 0:00:39]} Qf6 {[%emt 0:02:02]} 54. Kf1 {[%emt 0:00:52]} 1/2-1/2

[Event "POL-chT 2nd League-4 2020"]
[Site "Poronin"]
[Date "2020.09.12"]
[Round "8.10"]
[White "Babiarz, Arkadiusz"]
[Black "Watorek, Marcin"]
[Result "1-0"]
[ECO "B22"]
[WhiteElo "1872"]
[BlackElo "2100"]
[Annotator "ChessBase"]
[PlyCount "121"]
[EventDate "2020.09.05"]
[EventType "team-tourn"]
[EventCountry "POL"]
[SourceTitle "playchess.com"]
[Source "ChessBase"]
[SourceQuality "1"]
[WhiteTeam "Rzeszowski Klub Szachowy"]
[BlackTeam "MLKS Myslenice"]
[TimeControl "40/5400+30:900+30"]

1. e4 {[%emt 0:00:00]} c5 {[%emt 0:00:00]} 2. c3 {[%emt 0:00:00]} e6 {[%emt 0:00:00]} 3. d4 {[%emt 0:00:00]} d5 4. exd5 exd5 {[%emt 0:00:00]} 5. Bb5+ {[%emt 0:00:01]} Nc6 {[%emt 0:00:00]} 6. Nf3 {[%emt 0:00:31]} Bd6 {[%emt 0:00:05]} 7. O-O {[%emt 0:00:16]} Nge7 {[%emt 0:00:04]} 8. dxc5 {[%emt 0:00:19]} Bxc5 {[%emt 0:00:04]} 9. Nbd2 {[%emt 0:00:25]} O-O {[%emt 0:00:10]} 10. Nb3 {[%emt 0:00:31]} Bd6 {[%emt 0:00:04]} 11. Re1 {[%emt 0:00:39]} Bg4 {[%emt 0:02:06]} 12. h3 {[%emt 0:00:10]} Bh5 {[%emt 0:01:07]} 13. Bd3 {[%emt 0:00:53]} Bg6 {[%emt 0:02:32]} 14. Bg5 {[%emt 0:04:22]} Qc7 {[%emt 0:07:36]} 15. Nbd4 {[%emt 0:04:24]} a6 {[%emt 0:00:13]} 16. Bxg6 {[%emt 0:02:45]} hxg6 {[%emt 0:00:43]} 17. Qd3 {[%emt 0:06:14]} Rfe8 {[%emt 0:10:34]} 18. Re2 {[%emt 0:03:02]} Nxd4 {[%emt 0:10:09]} 19. Nxd4 {[%emt 0:00:16]} Nc6 {[%emt 0:00:54]} 20. Rae1 {[%emt 0:05:35]} Qd7 {[%emt 0:07:33]} 21. Nf3 {[%emt 0:00:44]} Rxe2 {[%emt 0:10:15]} 22. Rxe2 {[%emt 0:01:02]} Ne7 {[%emt 0:07:58]} 23. Bxe7 {[%emt 0:02:16]} Bxe7 {[%emt 0:00:05]} 24. c4 {[%emt 0:00:04]} d4 {[%emt 0:02:06]} 25. Qxd4 {[%emt 0:00:15]} Qxd4 {[%emt 0:00:17]} 26. Nxd4 {[%emt 0:00:04]} Bf6 {[%emt 0:00:01]} 27. Nf3 {[%emt 0:00:23]} Rd8 {[%emt 0:00:17]} 28. b3 {[%emt 0:00:46]} Kf8 {[%emt 0:04:49]} 29. Kf1 {[%emt 0:01:45]} Bc3 {[%emt 0:01:33]} 30. Rc2 {[%emt 0:01:43]} Bb4 {[%emt 0:00:35]} 31. Ke2 {[%emt 0:05:31]} f6 {[%emt 0:00:50]} 32. Ke3 {[%emt 0:02:22]} Re8+ {[%emt 0:01:08]} 33. Kd4 {[%emt 0:00:29]} Rd8+ {[%emt 0:00:21]} 34. Ke4 {[%emt 0:00:11]} Re8+ {[%emt 0:01:00]} 35. Kd3 {[%emt 0:02:07]} Rd8+ {[%emt 0:00:06]} 36. Ke2 {[%emt 0:00:06]} Re8+ {[%emt 0:00:48]} 37. Kf1 {[%emt 0:02:19]} Rd8 {[%emt 0:00:51]} 38. Rc1 {[%emt 0:00:46]} a5 {[%emt 0:05:18]} 39. c5 {[%emt 0:05:18]} a4 {[%emt 0:09:20]} 40. Rc4 {[%emt 0:00:00]} axb3 {[%emt 0:00:00]} 41. axb3 {[%emt 0:05:05]} Ba3 {[%emt 0:02:07]} 42. Ke2 {[%emt 0:04:36]} Ke7 {[%emt 0:01:29]} 43. Re4+ {[%emt 0:02:53]} Kd7 {[%emt 0:07:33]} 44. Rd4+ {[%emt 0:00:27]} Kc7 {[%emt 0:00:10]} 45. Rxd8 {[%emt 0:07:17]} Kxd8 {[%emt 0:00:04]} 46. Nh4 {[%emt 0:00:05]} Bxc5 {[%emt 0:03:51]} 47. Nxg6 {[%emt 0:00:07]} Kd7 {[%emt 0:00:17]} 48. f4 {[%emt 0:05:22]} Ke6 {[%emt 0:00:19]} 49. g4 {[%emt 0:00:35]} f5 {[%emt 0:00:21]} 50. g5 {[%emt 0:02:01]} Bd6 {[%emt 0:00:17]} 51. h4 {[%emt 0:00:39]} Kf7 {[%emt 0:01:48]} 52. h5 {[%emt 0:00:05]} Bc7 {[%emt 0:07:17]} 53. Kd3 {[%emt 0:00:25]} Bb6 {[%emt 0:03:56]} 54. Kc4 {[%emt 0:00:06]} Ba5 {[%emt 0:01:56]} 55. Kd5 {[%emt 0:00:23]} Bc3 {[%emt 0:00:17]} 56. Kd6 {[%emt 0:00:36]} b5 {[%emt 0:00:07]} 57. Ne5+ {[%emt 0:00:09]} Kf8 {[%emt 0:02:33]} 58. Ke6 {[%emt 0:00:08]} Bd2 {[%emt 0:00:39]} 59. Ng6+ {[%emt 0:00:10]} Kg8 {[%emt 0:00:07]} 60. Kxf5 {[%emt 0:00:08]} Kf7 {[%emt 0:00:03]} 61. Ne5+ {[%emt 0:00:45]} 1-0

[Event "POL-chT 2nd League-4 2020"]
[Site "Poronin"]
[Date "2020.09.12"]
[Round "8.11"]
[White "Chrzaszcz, Malvina"]
[Black "Ziemniak, Grzegorz"]
[Result "1/2-1/2"]
[ECO "B07"]
[WhiteElo "2047"]
[BlackElo "1693"]
[Annotator "NA"]
[PlyCount "78"]
[EventDate "2020.09.05"]
[EventType "team-tourn"]
[EventCountry "POL"]
[SourceTitle "playchess.com"]
[Source "ChessBase"]
[SourceQuality "1"]
[WhiteTeam "MLKS Myslenice"]
[BlackTeam "Rzeszowski Klub Szachowy"]
[WhiteTeamCountry "POL"]
[TimeControl "40/5400+30:900+30"]

1. e4 {[%emt 0:00:00]} d6 {[%emt 0:00:00]} 2. d4 {[%emt 0:00:00]} Nf6 {[%emt 0:00:00]} 3. Nc3 {[%emt 0:00:00]} Nbd7 {[%emt 0:00:00]} 4. Be3 {[%emt 0:00:07]} e5 {[%emt 0:00:00]} 5. f3 {[%emt 0:00:53]} Be7 {[%emt 0:00:10]} 6. Qd2 {[%emt 0:00:09]} c6 {[%emt 0:00:16]} 7. O-O-O {[%emt 0:00:12]} b5 {[%emt 0:07:53]} 8. g4 {[%emt 0:00:18]} Nb6 {[%emt 0:06:58]} 9. h4 {[%emt 0:02:40]} b4 {[%emt 0:06:47]} 10. Nb1 {[%emt 0:16:29]} Be6 {[%emt 0:00:15]} 11. Qh2 {[%emt 0:08:19]} Qc7 {[%emt 0:06:59]} 12. g5 {[%emt 0:04:30]} Nfd7 {[%emt 0:02:41]} 13. f4 {[%emt 0:02:38]} Bxa2 {[%emt 0:21:53]} 14. Nf3 {[%emt 0:17:42]} Na4 {[%emt 0:05:00]} 15. dxe5 {[%emt 0:05:15]} dxe5 {[%emt 0:00:32]} 16. Bh3 {[%emt 0:04:42]} Rd8 {[%emt 0:06:57]} 17. h5 {[%emt 0:13:09]} Bxb1 {[%emt 0:01:15]} 18. Bxd7+ {[%emt 0:01:38]} Rxd7 {[%emt 0:00:15]} 19. Rxd7 {[%emt 0:00:05]} Qxd7 {[%emt 0:00:14]} 20. Nxe5 {[%emt 0:01:00]} Qb7 {[%emt 0:04:10]} 21. Kxb1 {[%emt 0:07:48]} O-O {[%emt 0:06:47]} 22. g6 {[%emt 0:02:11]} Nc3+ {[%emt 0:06:27]} 23. Kc1 {[%emt 0:00:20]} Rd8 {[%emt 0:01:09]} 24. gxf7+ {[%emt 0:04:36]} Kf8 {[%emt 0:00:32]} 25. Nd3 {[%emt 0:04:59]} Qa6 {[%emt 0:07:50]} 26. h6 {[%emt 0:00:38]} g6 {[%emt 0:00:50]} 27. f5 {[%emt 0:00:56]} Rxd3 {[%emt 0:02:40]} 28. cxd3 {[%emt 0:01:09]} Qxd3 {[%emt 0:00:32]} 29. bxc3 {[%emt 0:00:44]} Qxe3+ {[%emt 0:03:50]} 30. Qd2 {[%emt 0:01:20]} Qg3 {[%emt 0:00:18]} 31. fxg6 {[%emt 0:00:30]} Bg5 {[%emt 0:00:24]} 32. g7+ {[%emt 0:00:08]} Kxf7 {[%emt 0:00:18]} 33. Rf1+ {[%emt 0:00:34]} Ke7 {[%emt 0:00:15]} 34. g8=N+ {[%emt 0:00:15]} Ke8 {[%emt 0:00:44]} 35. Nf6+ {[%emt 0:00:07]} Ke7 {[%emt 0:00:32]} 36. Ng8+ {[%emt 0:00:02]} Ke8 {[%emt 0:00:16]} 37. Nf6+ {[%emt 0:00:09]} Ke7 {[%emt 0:00:52]} 38. Ng8+ {[%emt 0:00:02]} Ke6 39. Rf6+ Bxf6 1/2-1/2

[Event "POL-chT 2nd League-4 2020"]
[Site "Poronin"]
[Date "2020.09.12"]
[Round "8.12"]
[White "Polak, Sylwia"]
[Black "Leszczynska, Malgorzata"]
[Result "0-1"]
[ECO "D48"]
[WhiteElo "1590"]
[BlackElo "1990"]
[Annotator "NA"]
[PlyCount "46"]
[EventDate "2020.09.05"]
[EventType "team-tourn"]
[EventCountry "POL"]
[SourceTitle "playchess.com"]
[Source "ChessBase"]
[SourceQuality "1"]
[WhiteTeam "Rzeszowski Klub Szachowy"]
[BlackTeam "MLKS Myslenice"]
[TimeControl "40/5400+30:900+30"]

1. d4 e6 2. c4 d5 3. Nc3 c6 4. Nf3 Nf6 5. e3 Nbd7 6. Bd3 dxc4 7. Bxc4 b5 8. Bd3 a6 9. e4 c5 10. d5 exd5 11. e5 Ng4 12. Bg5 Be7 13. Bxe7 Qxe7 14. Nxd5 Qd8 15. O-O O-O 16. Re1 Re8 17. h3 Ngxe5 18. Nxe5 Nxe5 19. Bxh7+ Kxh7 20. Qh5+ Kg8 21. Rxe5 Bb7 22. Rae1 Rxe5 23. Qxe5 Qxd5 0-1

[Event "POL-chT 2nd League-4 2020"]
[Site "Poronin"]
[Date "2020.09.12"]
[Round "8.13"]
[White "Swiech, Przemyslaw"]
[Black "Kaminski, Piotr"]
[Result "1-0"]
[ECO "D43"]
[WhiteElo "2180"]
[BlackElo "2099"]
[Annotator "ChessBase"]
[PlyCount "69"]
[EventDate "2020.09.05"]
[EventType "team-tourn"]
[EventCountry "POL"]
[SourceTitle "playchess.com"]
[Source "ChessBase"]
[SourceQuality "1"]
[WhiteTeam "Goniec Staniatki"]
[BlackTeam "ROSZADA Zory"]
[WhiteTeamCountry "POL"]
[TimeControl "40/5400+30:900+30"]

1. d4 {[%emt 0:00:00]} d5 {[%emt 0:00:00]} 2. c4 {[%emt 0:00:07]} c6 {[%emt 0:00:00]} 3. Nc3 {[%emt 0:00:10]} Nf6 {[%emt 0:00:07]} 4. Nf3 {[%emt 0:00:23]} e6 {[%emt 0:01:01]} 5. g3 {[%emt 0:01:31]} Nbd7 {[%emt 0:00:20]} 6. cxd5 {[%emt 0:00:39]} exd5 {[%emt 0:00:27]} 7. Bg2 {[%emt 0:00:21]} Bd6 {[%emt 0:01:52]} 8. Bf4 {[%emt 0:00:20]} Bxf4 {[%emt 0:03:47]} 9. gxf4 {[%emt 0:00:08]} Nh5 {[%emt 0:03:18]} 10. e3 {[%emt 0:00:55]} O-O {[%emt 0:01:15]} 11. Ne5 {[%emt 0:01:26]} Qh4 {[%emt 0:05:46]} 12. O-O {[%emt 0:02:52]} Nxe5 {[%emt 0:04:00]} 13. fxe5 {[%emt 0:01:59]} Bh3 {[%emt 0:01:10]} 14. f4 {[%emt 0:03:49]} Bxg2 {[%emt 0:03:29]} 15. Kxg2 {[%emt 0:00:08]} Rae8 {[%emt 0:05:57]} 16. Qf3 {[%emt 0:07:08]} Re6 {[%emt 0:05:00]} 17. f5 {[%emt 0:01:57]} Rh6 {[%emt 0:00:57]} 18. h3 {[%emt 0:01:47]} Qe7 {[%emt 0:05:53]} 19. e4 {[%emt 0:20:02]} Qg5+ {[%emt 0:16:56]} 20. Kh2 {[%emt 0:00:46]} Qd2+ {[%emt 0:00:24]} 21. Qf2 {[%emt 0:00:21]} Qxf2+ {[%emt 0:09:38]} 22. Rxf2 {[%emt 0:00:08]} dxe4 {[%emt 0:00:07]} 23. Nxe4 {[%emt 0:00:13]} f6 {[%emt 0:03:58]} 24. e6 {[%emt 0:00:38]} Rd8 {[%emt 0:01:12]} 25. Re1 {[%emt 0:09:24]} Kf8 {[%emt 0:09:33]} 26. e7+ {[%emt 0:04:45]} Kxe7 {[%emt 0:00:11]} 27. Ng5+ {[%emt 0:00:10]} Kd7 {[%emt 0:01:04]} 28. Nf7 {[%emt 0:00:10]} Rf8 {[%emt 0:01:48]} 29. Nxh6 {[%emt 0:00:19]} gxh6 {[%emt 0:00:01]} 30. d5 {[%emt 0:03:47]} cxd5 {[%emt 0:00:56]} 31. Rd1 {[%emt 0:00:12]} Kd6 {[%emt 0:01:52]} 32. Rfd2 {[%emt 0:00:09]} Ke5 {[%emt 0:00:23]} 33. Rxd5+ {[%emt 0:00:14]} Ke4 {[%emt 0:00:13]} 34. R1d4+ {[%emt 0:01:20]} Ke3 {[%emt 0:00:02]} 35. Rd8 {[%emt 0:00:29]} 1-0

[Event "POL-chT 2nd League-4 2020"]
[Site "Poronin"]
[Date "2020.09.12"]
[Round "8.14"]
[White "Szmyd, Arkadiusz"]
[Black "Bednarczyk, Damian"]
[Result "0-1"]
[ECO "B37"]
[WhiteElo "2104"]
[BlackElo "2258"]
[Annotator "ChessBase"]
[PlyCount "72"]
[EventDate "2020.09.05"]
[EventType "team-tourn"]
[EventCountry "POL"]
[SourceTitle "playchess.com"]
[Source "ChessBase"]
[SourceQuality "1"]
[WhiteTeam "ROSZADA Zory"]
[BlackTeam "Goniec Staniatki"]
[TimeControl "40/5400+30:900+30"]

1. e4 {[%emt 0:00:00]} c5 {[%emt 0:03:56]} 2. Nf3 {[%emt 0:00:00]} Nc6 {[%emt 0:00:51]} 3. d4 {[%emt 0:00:07]} cxd4 {[%emt 0:00:18]} 4. Nxd4 {[%emt 0:00:08]} g6 {[%emt 0:00:43]} 5. c4 {[%emt 0:00:41]} Bg7 {[%emt 0:00:14]} 6. Nc2 {[%emt 0:00:13]} Nf6 {[%emt 0:00:52]} 7. Nc3 {[%emt 0:00:08]} O-O {[%emt 0:00:51]} 8. Be2 {[%emt 0:00:16]} a5 {[%emt 0:01:31]} 9. O-O {[%emt 0:00:34]} a4 {[%emt 0:02:28]} 10. Rb1 {[%emt 0:04:05]} d6 {[%emt 0:00:28]} 11. Kh1 {[%emt 0:00:43]} Nd7 {[%emt 0:01:51]} 12. Bd2 {[%emt 0:00:55]} Nc5 {[%emt 0:00:29]} 13. f3 {[%emt 0:03:38]} f5 {[%emt 0:05:56]} 14. b4 {[%emt 0:09:13]} axb3 {[%emt 0:00:34]} 15. axb3 {[%emt 0:00:12]} fxe4 {[%emt 0:06:03]} 16. Nxe4 {[%emt 0:02:05]} Nxe4 {[%emt 0:00:06]} 17. fxe4 {[%emt 0:00:12]} Rxf1+ {[%emt 0:00:42]} 18. Bxf1 {[%emt 0:01:34]} Ra2 {[%emt 0:03:16]} 19. b4 {[%emt 0:04:33]} Be6 {[%emt 0:03:19]} 20. Ne3 {[%emt 0:04:57]} Qf8 {[%emt 0:02:45]} 21. Nd5 {[%emt 0:13:25]} Ne5 {[%emt 0:16:25]} 22. Be3 {[%emt 0:02:23]} Ng4 {[%emt 0:07:29]} 23. Qb3 {[%emt 0:02:02]} Rf2 {[%emt 0:00:23]} 24. Bxf2 {[%emt 0:39:45]} Nxf2+ {[%emt 0:01:00]} 25. Kg1 {[%emt 0:00:02]} Bd4 {[%emt 0:00:15]} 26. Be2 {[%emt 0:00:47]} Nxe4+ {[%emt 0:09:26]} 27. Kh1 {[%emt 0:00:02]} Nf2+ {[%emt 0:06:57]} 28. Kg1 {[%emt 0:00:01]} Nh3+ {[%emt 0:00:56]} 29. Kh1 {[%emt 0:00:11]} Qf2 {[%emt 0:00:49]} 30. Qf3 {[%emt 0:01:23]} Bg4 {[%emt 0:00:07]} 31. Nxe7+ {[%emt 0:03:53]} Kg7 {[%emt 0:00:20]} 32. Qxf2 {[%emt 0:00:36]} Nxf2+ {[%emt 0:00:07]} 33. Kg1 {[%emt 0:00:09]} Bxe2 {[%emt 0:00:08]} 34. Nc8 {[%emt 0:00:30]} Bxc4 {[%emt 0:00:31]} 35. b5 {[%emt 0:02:38]} Be6 {[%emt 0:00:38]} 36. Na7 {[%emt 0:02:12]} Ne4+ {[%emt 0:00:55]} 0-1